[Event "Titled Tuesday Blitz January 10 Early 2023"]
[White "Tymrakiewicz, Rafal"]
[Black "Aspire_ie"]
[WhiteFideId "1108832"]
[WhiteElo "2144"]
[BlackElo "2307"]
[Result "1-0"]
[Round "03"]
[TimeControl "180+2"]
[Date "2023.01.10"]
[WhiteClock "0:00:10"]
[BlackClock "0:00:09"]

1. d4 {[%clk 0:03:00]}  d6 {[%clk 0:02:59]} 2. Bg5 {[%clk 0:02:58]}  Nf6 {[%clk 0:02:59]} 3. e3 {[%clk 0:02:54]}  g6 {[%clk 0:02:57]} 4. c4 {[%clk 0:02:52]}  Bg7 {[%clk 0:02:57]} 5. Nc3 {[%clk 0:02:53]}  h6 {[%clk 0:02:56]} 6. Bh4 {[%clk 0:02:52]}  O-O {[%clk 0:02:55]} 7. Nf3 {[%clk 0:02:52]}  c5 {[%clk 0:02:52]} 8. Be2 {[%clk 0:02:52]}  cxd4 {[%clk 0:02:41]} 9. exd4 {[%clk 0:02:53]}  Nc6 {[%clk 0:02:40]} 10. O-O {[%clk 0:02:50]}  Qb6 {[%clk 0:02:31]} 11. Qd2 {[%clk 0:02:33]}  g5 {[%clk 0:02:23]} 12. Bg3 {[%clk 0:02:33]}  g4 {[%clk 0:02:19]} 13. Nh4 {[%clk 0:02:29]}  Qxd4 {[%clk 0:02:16]} 14. Qc2 {[%clk 0:02:23]}  Qc5 {[%clk 0:02:06]} 15. Rad1 {[%clk 0:02:01]}  Nd4 {[%clk 0:02:02]} 16. Rxd4 {[%clk 0:02:01]}  Qxd4 {[%clk 0:02:02]} 17. Rd1 {[%clk 0:02:02]}  Qc5 {[%clk 0:01:56]} 18. a3 {[%clk 0:01:55]}  a5 {[%clk 0:01:53]} 19. Nd5 {[%clk 0:01:42]}  Nxd5 {[%clk 0:01:11]} 20. Rxd5 {[%clk 0:01:42]}  Qc6 {[%clk 0:01:10]} 21. Nf5 {[%clk 0:01:10]}  Bxf5 {[%clk 0:01:09]} 22. Rxf5 {[%clk 0:01:10]}  e6 {[%clk 0:01:04]} 23. Rb5 {[%clk 0:01:01]}  Rfc8 {[%clk 0:00:57]} 24. Qd3 {[%clk 0:00:34]}  f5 {[%clk 0:00:41]} 25. b3 {[%clk 0:00:32]}  Rd8 {[%clk 0:00:38]} 26. h3 {[%clk 0:00:23]}  gxh3 {[%clk 0:00:35]} 27. Bf3 {[%clk 0:00:22]}  d5 {[%clk 0:00:30]} 28. cxd5 {[%clk 0:00:21]}  Qc1+ {[%clk 0:00:26]} 29. Kh2 {[%clk 0:00:20]}  hxg2 {[%clk 0:00:25]} 30. Bxg2 {[%clk 0:00:17]}  Rac8 {[%clk 0:00:21]} 31. Rxb7 {[%clk 0:00:14]}  Qc3 {[%clk 0:00:18]} 32. Qe2 {[%clk 0:00:09]}  exd5 {[%clk 0:00:16]} 33. Qe6+ {[%clk 0:00:08]}  Kh8 {[%clk 0:00:15]} 34. Rxg7 {[%clk 0:00:07]}  Kxg7 {[%clk 0:00:12]} 35. Be5+ {[%clk 0:00:07]}  Qxe5+ {[%clk 0:00:11]} 36. Qxe5+ {[%clk 0:00:08]}  Kg6 {[%clk 0:00:12]} 37. Qe6+ {[%clk 0:00:09]}  Kg7 {[%clk 0:00:11]} 38. Qe7+ {[%clk 0:00:09]}  Kg6 {[%clk 0:00:11]} 39. Qe6+ {[%clk 0:00:09]}  Kg7 {[%clk 0:00:11]} 40. Bh3 {[%clk 0:00:10]}  d4 {[%clk 0:00:10]} 41. Bxf5 {[%clk 0:00:09]}  Rf8 {[%clk 0:00:10]} 42. Qg6+ {[%clk 0:00:10]}  Kh8 {[%clk 0:00:09]} 43. Qh7# {[%clk 0:00:10]} 1-0


[Site "https://www.chess.com"]

[Event "Titled Tuesday Blitz January 10 Early 2023"]
[White "Ruiz Aguilar, Pablo Alexander"]
[Black "Erzhanov, Arman"]
[WhiteFideId "4401352"]
[BlackFideId "4138821"]
[WhiteElo "2161"]
[BlackElo "2228"]
[Result "1-0"]
[Round "03"]
[TimeControl "180+2"]
[Date "2023.01.10"]
[WhiteClock "0:00:25"]
[BlackClock "0:00:03"]

1. e4 {[%clk 0:03:00]}  d6 {[%clk 0:03:00]} 2. Nf3 {[%clk 0:03:00]}  Nf6 {[%clk 0:03:00]} 3. Nc3 {[%clk 0:03:00]}  e5 {[%clk 0:03:01]} 4. d4 {[%clk 0:03:00]}  Nbd7 {[%clk 0:03:01]} 5. Bc4 {[%clk 0:03:00]}  Be7 {[%clk 0:03:02]} 6. O-O {[%clk 0:02:55]}  O-O {[%clk 0:03:03]} 7. Re1 {[%clk 0:02:55]}  c6 {[%clk 0:03:03]} 8. Bb3 {[%clk 0:02:54]}  b5 {[%clk 0:03:03]} 9. a3 {[%clk 0:02:52]}  a6 {[%clk 0:03:04]} 10. h3 {[%clk 0:02:50]}  h6 {[%clk 0:03:04]} 11. Be3 {[%clk 0:02:49]}  Re8 {[%clk 0:03:05]} 12. Qd2 {[%clk 0:02:49]}  Bf8 {[%clk 0:03:03]} 13. Rad1 {[%clk 0:02:46]}  Qc7 {[%clk 0:03:03]} 14. Nh2 {[%clk 0:02:37]}  Bb7 {[%clk 0:02:59]} 15. f4 {[%clk 0:02:32]}  exd4 {[%clk 0:02:53]} 16. Bxd4 {[%clk 0:02:31]}  c5 {[%clk 0:02:54]} 17. Bxf6 {[%clk 0:02:30]}  Nxf6 {[%clk 0:02:53]} 18. Nd5 {[%clk 0:02:26]}  Bxd5 {[%clk 0:02:34]} 19. Bxd5 {[%clk 0:02:26]}  Nxd5 {[%clk 0:02:33]} 20. Qxd5 {[%clk 0:02:26]}  c4 {[%clk 0:02:31]} 21. Kh1 {[%clk 0:02:23]}  Rac8 {[%clk 0:02:29]} 22. Ng4 {[%clk 0:02:19]}  Qb6 {[%clk 0:02:17]} 23. Qd4 {[%clk 0:02:05]}  Qc6 {[%clk 0:02:07]} 24. f5 {[%clk 0:01:56]}  Qc5 {[%clk 0:01:49]} 25. Ne3 {[%clk 0:01:44]}  c3 {[%clk 0:01:28]} 26. b4 {[%clk 0:01:44]}  Qe5 {[%clk 0:01:13]} 27. Qxe5 {[%clk 0:01:30]}  dxe5 {[%clk 0:01:08]} 28. Nd5 {[%clk 0:01:22]}  a5 {[%clk 0:00:54]} 29. Rd3 {[%clk 0:01:15]}  axb4 {[%clk 0:00:54]} 30. axb4 {[%clk 0:01:15]}  Rc4 {[%clk 0:00:53]} 31. Rxc3 {[%clk 0:01:13]}  Rxc3 {[%clk 0:00:53]} 32. Nxc3 {[%clk 0:01:11]}  Bxb4 {[%clk 0:00:54]} 33. Re3 {[%clk 0:01:11]}  Rc8 {[%clk 0:00:46]} 34. Nd5 {[%clk 0:01:02]}  Bd6 {[%clk 0:00:32]} 35. Rc3 {[%clk 0:00:58]}  Rxc3 {[%clk 0:00:27]} 36. Nxc3 {[%clk 0:00:58]}  b4 {[%clk 0:00:28]} 37. Nd5 {[%clk 0:00:58]}  Kf8 {[%clk 0:00:26]} 38. Kg1 {[%clk 0:00:55]}  Ke8 {[%clk 0:00:26]} 39. Kf2 {[%clk 0:00:55]}  Kd7 {[%clk 0:00:27]} 40. Ke3 {[%clk 0:00:55]}  Kc6 {[%clk 0:00:28]} 41. Kd3 {[%clk 0:00:55]}  Kb5 {[%clk 0:00:28]} 42. g4 {[%clk 0:00:50]}  f6 {[%clk 0:00:28]} 43. Ne3 {[%clk 0:00:46]}  Bc5 {[%clk 0:00:26]} 44. Nd5 {[%clk 0:00:43]}  Bd6 {[%clk 0:00:26]} 45. Ne3 {[%clk 0:00:37]}  Bc5 {[%clk 0:00:26]} 46. Ng2 {[%clk 0:00:33]}  Bf2 {[%clk 0:00:24]} 47. Ke2 {[%clk 0:00:31]}  Bg3 {[%clk 0:00:18]} 48. Ne3 {[%clk 0:00:29]}  Kc5 {[%clk 0:00:17]} 49. Kd3 {[%clk 0:00:28]}  Bf2 {[%clk 0:00:16]} 50. Nd5 {[%clk 0:00:28]}  Bg1 {[%clk 0:00:07]} 51. Nc7 {[%clk 0:00:28]}  Kd6 {[%clk 0:00:04]} 52. Ne8+ {[%clk 0:00:28]}  Ke7 {[%clk 0:00:04]} 53. Nxg7 {[%clk 0:00:29]}  Kf7 {[%clk 0:00:04]} 54. Ne6 {[%clk 0:00:28]}  Ke7 {[%clk 0:00:04]} 55. Nc7 {[%clk 0:00:27]}  Bf2 {[%clk 0:00:04]} 56. Nd5+ {[%clk 0:00:27]}  Kf7 {[%clk 0:00:04]} 57. Nxb4 {[%clk 0:00:27]}  Bg1 {[%clk 0:00:05]} 58. Nd5 {[%clk 0:00:27]}  Ba7 {[%clk 0:00:04]} 59. Kc4 {[%clk 0:00:28]}  Bg1 {[%clk 0:00:02]} 60. Kb5 {[%clk 0:00:28]}  Bf2 {[%clk 0:00:02]} 61. Kc6 {[%clk 0:00:28]}  Bh4 {[%clk 0:00:02]} 62. c4 {[%clk 0:00:28]}  Ke8 {[%clk 0:00:02]} 63. Kd6 {[%clk 0:00:28]}  Kd8 {[%clk 0:00:02]} 64. c5 {[%clk 0:00:27]}  Kc8 {[%clk 0:00:03]} 65. c6 {[%clk 0:00:28]}  Bf2 {[%clk 0:00:02]} 66. Ne7+ {[%clk 0:00:26]}  Kd8 {[%clk 0:00:02]} 67. c7+ {[%clk 0:00:27]}  Ke8 {[%clk 0:00:03]} 68. c8=Q+ {[%clk 0:00:26]}  Kf7 {[%clk 0:00:03]} 69. Qg8# {[%clk 0:00:25]} 1-0


[Site "https://www.chess.com"]

[Event "Titled Tuesday Blitz January 10 Early 2023"]
[White "Bobomurodova, Maftuna"]
[Black "Manukian, Artak"]
[WhiteFideId "14207400"]
[BlackFideId "13301373"]
[WhiteElo "1946"]
[BlackElo "2196"]
[Result "1-0"]
[Round "03"]
[TimeControl "180+2"]
[Date "2023.01.10"]
[WhiteClock "0:00:33"]
[BlackClock "0:00:50"]

1. e4 {[%clk 0:03:00]}  c6 {[%clk 0:02:57]} 2. d4 {[%clk 0:03:00]}  d5 {[%clk 0:02:58]} 3. Nd2 {[%clk 0:03:00]}  dxe4 {[%clk 0:02:58]} 4. Nxe4 {[%clk 0:03:00]}  Nf6 {[%clk 0:02:59]} 5. Ng3 {[%clk 0:03:00]}  Bg4 {[%clk 0:02:58]} 6. f3 {[%clk 0:02:56]}  Bd7 {[%clk 0:02:56]} 7. Bd3 {[%clk 0:02:53]}  e6 {[%clk 0:02:54]} 8. N1e2 {[%clk 0:02:49]}  c5 {[%clk 0:02:54]} 9. O-O {[%clk 0:02:49]}  Nc6 {[%clk 0:02:54]} 10. c3 {[%clk 0:02:44]}  cxd4 {[%clk 0:02:54]} 11. cxd4 {[%clk 0:02:44]}  Qb6 {[%clk 0:02:51]} 12. Be3 {[%clk 0:02:28]}  Nd5 {[%clk 0:02:51]} 13. Bf2 {[%clk 0:02:27]}  Be7 {[%clk 0:02:50]} 14. b3 {[%clk 0:02:21]}  O-O {[%clk 0:02:48]} 15. Ne4 {[%clk 0:02:15]}  Rfd8 {[%clk 0:02:43]} 16. Re1 {[%clk 0:02:09]}  Rac8 {[%clk 0:02:36]} 17. Bc4 {[%clk 0:02:00]}  Bf8 {[%clk 0:02:22]} 18. Rc1 {[%clk 0:01:43]}  Na5 {[%clk 0:02:21]} 19. Ng5 {[%clk 0:01:06]}  h6 {[%clk 0:02:14]} 20. Nh3 {[%clk 0:01:01]}  Ba3 {[%clk 0:02:09]} 21. Rb1 {[%clk 0:00:57]}  Bb5 {[%clk 0:02:03]} 22. Bxb5 {[%clk 0:00:53]}  Qxb5 {[%clk 0:02:03]} 23. Nhf4 {[%clk 0:00:53]}  Bb4 {[%clk 0:01:56]} 24. Rf1 {[%clk 0:00:51]}  Nxf4 {[%clk 0:01:54]} 25. Nxf4 {[%clk 0:00:51]}  Nc6 {[%clk 0:01:54]} 26. Qe2 {[%clk 0:00:48]}  Qf5 {[%clk 0:01:46]} 27. Nd3 {[%clk 0:00:46]}  Bd6 {[%clk 0:01:43]} 28. Rfd1 {[%clk 0:00:44]}  Nb4 {[%clk 0:01:40]} 29. Nxb4 {[%clk 0:00:44]}  Bxb4 {[%clk 0:01:40]} 30. Rbc1 {[%clk 0:00:44]}  Qd5 {[%clk 0:01:34]} 31. Rc4 {[%clk 0:00:43]}  Bd6 {[%clk 0:01:29]} 32. Rdc1 {[%clk 0:00:43]}  Rc6 {[%clk 0:01:20]} 33. Rxc6 {[%clk 0:00:42]}  bxc6 {[%clk 0:01:20]} 34. Qc4 {[%clk 0:00:42]}  Rc8 {[%clk 0:01:18]} 35. Qxd5 {[%clk 0:00:42]}  exd5 {[%clk 0:01:18]} 36. Kf1 {[%clk 0:00:42]}  Kf8 {[%clk 0:01:17]} 37. Ke2 {[%clk 0:00:43]}  Ke7 {[%clk 0:01:17]} 38. Kd3 {[%clk 0:00:43]}  Kd7 {[%clk 0:01:18]} 39. Bg3 {[%clk 0:00:43]}  Bxg3 {[%clk 0:01:17]} 40. hxg3 {[%clk 0:00:44]}  Re8 {[%clk 0:01:16]} 41. b4 {[%clk 0:00:44]}  a6 {[%clk 0:01:15]} 42. a4 {[%clk 0:00:44]}  Kd6 {[%clk 0:01:12]} 43. Rb1 {[%clk 0:00:44]}  Rb8 {[%clk 0:01:10]} 44. Kc3 {[%clk 0:00:44]}  h5 {[%clk 0:01:09]} 45. Re1 {[%clk 0:00:44]}  g6 {[%clk 0:01:09]} 46. f4 {[%clk 0:00:43]}  Rb7 {[%clk 0:01:04]} 47. Re5 {[%clk 0:00:43]}  Re7 {[%clk 0:01:01]} 48. Kd3 {[%clk 0:00:42]}  f6 {[%clk 0:01:01]} 49. Re3 {[%clk 0:00:38]}  Rxe3+ {[%clk 0:00:51]} 50. Kxe3 {[%clk 0:00:39]}  a5 {[%clk 0:00:50]} 51. bxa5 {[%clk 0:00:36]}  Kc7 {[%clk 0:00:50]} 52. Kd3 {[%clk 0:00:34]}  Kb7 {[%clk 0:00:45]} 53. Kc3 {[%clk 0:00:34]}  Ka6 {[%clk 0:00:45]} 54. Kb4 {[%clk 0:00:34]}  g5 {[%clk 0:00:45]} 55. fxg5 {[%clk 0:00:33]}  fxg5 {[%clk 0:00:46]} 56. Kc5 {[%clk 0:00:34]}  Kxa5 {[%clk 0:00:47]} 57. Kxc6 {[%clk 0:00:34]}  Kxa4 {[%clk 0:00:48]} 58. Kxd5 {[%clk 0:00:34]}  Kb4 {[%clk 0:00:48]} 59. Ke5 {[%clk 0:00:35]}  Kc4 {[%clk 0:00:48]} 60. d5 {[%clk 0:00:33]}  h4 {[%clk 0:00:49]} 61. gxh4 {[%clk 0:00:33]}  gxh4 {[%clk 0:00:50]} 62. d6 {[%clk 0:00:33]} 1-0


[Site "https://www.chess.com"]

[Event "Titled Tuesday Blitz January 10 Early 2023"]
[White "Guliev, Logman"]
[Black "Thiel, Thomas"]
[WhiteFideId "13400061"]
[BlackFideId "4615964"]
[WhiteElo "2250"]
[BlackElo "2234"]
[Result "1-0"]
[Round "03"]
[TimeControl "180+2"]
[Date "2023.01.10"]
[WhiteClock "0:01:43"]
[BlackClock "0:02:14"]

1. e4 {[%clk 0:02:58]}  d5 {[%clk 0:02:59]} 2. exd5 {[%clk 0:02:58]}  Nf6 {[%clk 0:02:59]} 3. d4 {[%clk 0:02:57]}  Nxd5 {[%clk 0:02:57]} 4. c4 {[%clk 0:02:57]}  Nb6 {[%clk 0:02:56]} 5. Nf3 {[%clk 0:02:57]}  g6 {[%clk 0:02:55]} 6. Nc3 {[%clk 0:02:57]}  Bg7 {[%clk 0:02:55]} 7. c5 {[%clk 0:02:57]}  Nd5 {[%clk 0:02:54]} 8. Bc4 {[%clk 0:02:58]}  Nxc3 {[%clk 0:02:53]} 9. bxc3 {[%clk 0:02:58]}  O-O {[%clk 0:02:53]} 10. O-O {[%clk 0:02:58]}  Nc6 {[%clk 0:02:52]} 11. Re1 {[%clk 0:02:58]}  Bg4 {[%clk 0:02:50]} 12. h3 {[%clk 0:02:57]}  Bxf3 {[%clk 0:02:50]} 13. Qxf3 {[%clk 0:02:58]}  Nxd4 {[%clk 0:02:49]} 14. cxd4 {[%clk 0:02:43]}  Qxd4 {[%clk 0:02:50]} 15. Bg5 {[%clk 0:02:19]}  Qxc4 {[%clk 0:02:49]} 16. Rac1 {[%clk 0:02:19]}  Qa6 {[%clk 0:02:48]} 17. Rxe7 {[%clk 0:02:16]}  c6 {[%clk 0:02:45]} 18. Bf6 {[%clk 0:02:11]}  Rae8 {[%clk 0:02:40]} 19. Rce1 {[%clk 0:02:02]}  Rxe7 {[%clk 0:02:37]} 20. Rxe7 {[%clk 0:02:02]}  b5 {[%clk 0:02:23]} 21. h4 {[%clk 0:01:51]}  b4 {[%clk 0:02:15]} 22. h5 {[%clk 0:01:48]}  gxh5 {[%clk 0:02:14]} 23. Qg3 {[%clk 0:01:43]} 1-0


[Site "https://www.chess.com"]

[Event "Titled Tuesday Blitz January 10 Early 2023"]
[White "Riverol, Jose"]
[Black "Horcajuelo Rocamora, Martin"]
[WhiteFideId "3000427"]
[BlackFideId "24573027"]
[WhiteElo "2304"]
[BlackElo "2107"]
[Result "1-0"]
[Round "03"]
[TimeControl "180+2"]
[Date "2023.01.10"]
[WhiteClock "0:00:14"]
[BlackClock "0:00:31"]

1. d4 {[%clk 0:03:00]}  d5 {[%clk 0:02:56]} 2. c4 {[%clk 0:03:00]}  c6 {[%clk 0:02:50]} 3. Nf3 {[%clk 0:02:59]}  Nf6 {[%clk 0:02:48]} 4. Qb3 {[%clk 0:02:59]}  e6 {[%clk 0:02:47]} 5. g3 {[%clk 0:02:58]}  dxc4 {[%clk 0:02:46]} 6. Qxc4 {[%clk 0:02:58]}  b5 {[%clk 0:02:47]} 7. Qc2 {[%clk 0:02:58]}  Bb7 {[%clk 0:02:48]} 8. Bg2 {[%clk 0:02:58]}  Nbd7 {[%clk 0:02:48]} 9. O-O {[%clk 0:02:58]}  Rc8 {[%clk 0:02:48]} 10. a4 {[%clk 0:02:58]}  a6 {[%clk 0:02:48]} 11. Rd1 {[%clk 0:02:53]}  Be7 {[%clk 0:02:45]} 12. Nbd2 {[%clk 0:02:27]}  O-O {[%clk 0:02:41]} 13. Nb3 {[%clk 0:02:26]}  Nb6 {[%clk 0:02:36]} 14. axb5 {[%clk 0:02:18]}  cxb5 {[%clk 0:02:37]} 15. Qb1 {[%clk 0:01:35]}  Qc7 {[%clk 0:02:27]} 16. Bf4 {[%clk 0:01:31]}  Qd7 {[%clk 0:02:24]} 17. Ne5 {[%clk 0:01:28]}  Qc7 {[%clk 0:02:11]} 18. Ng6 {[%clk 0:01:14]}  Qd7 {[%clk 0:02:01]} 19. Nxf8 {[%clk 0:01:11]}  Bxf8 {[%clk 0:02:02]} 20. Bxb7 {[%clk 0:01:10]}  Qxb7 {[%clk 0:02:01]} 21. Nc5 {[%clk 0:01:09]}  Bxc5 {[%clk 0:01:58]} 22. dxc5 {[%clk 0:01:09]}  Nbd5 {[%clk 0:01:58]} 23. Bd6 {[%clk 0:01:08]}  Nb4 {[%clk 0:01:54]} 24. f3 {[%clk 0:00:55]}  h6 {[%clk 0:01:51]} 25. Qc1 {[%clk 0:00:51]}  Nfd5 {[%clk 0:01:44]} 26. Qd2 {[%clk 0:00:49]}  Nc6 {[%clk 0:01:42]} 27. e4 {[%clk 0:00:47]}  Nf6 {[%clk 0:01:42]} 28. Kg2 {[%clk 0:00:41]}  e5 {[%clk 0:01:32]} 29. Qc3 {[%clk 0:00:37]}  Re8 {[%clk 0:01:25]} 30. b4 {[%clk 0:00:36]}  Nd7 {[%clk 0:01:17]} 31. Rd2 {[%clk 0:00:31]}  Nd4 {[%clk 0:01:15]} 32. Rda2 {[%clk 0:00:26]}  f5 {[%clk 0:00:56]} 33. Bxe5 {[%clk 0:00:18]}  Nxe5 {[%clk 0:00:44]} 34. Qxd4 {[%clk 0:00:18]}  Nxf3 {[%clk 0:00:33]} 35. Qd5+ {[%clk 0:00:16]}  Qxd5 {[%clk 0:00:30]} 36. exd5 {[%clk 0:00:17]}  Nd4 {[%clk 0:00:30]} 37. d6 {[%clk 0:00:17]}  Nc6 {[%clk 0:00:30]} 38. Rxa6 {[%clk 0:00:16]}  Nxb4 {[%clk 0:00:30]} 39. Ra8 {[%clk 0:00:15]}  Kf7 {[%clk 0:00:31]} 40. R1a7+ {[%clk 0:00:14]} 1-0


[Site "https://www.chess.com"]

[Event "Titled Tuesday Blitz January 10 Early 2023"]
[White "Leve, Nitai"]
[Black "Lauridsen, Jesper Morch"]
[WhiteFideId "2006898"]
[BlackFideId "1401890"]
[WhiteElo "2128"]
[BlackElo "2309"]
[Result "0-1"]
[Round "03"]
[TimeControl "180+2"]
[Date "2023.01.10"]
[WhiteClock "0:00:06"]
[BlackClock "0:00:21"]

1. e4 {[%clk 0:03:00]}  e5 {[%clk 0:02:57]} 2. Nf3 {[%clk 0:02:58]}  Nf6 {[%clk 0:02:56]} 3. d4 {[%clk 0:02:58]}  Nxe4 {[%clk 0:02:55]} 4. Nxe5 {[%clk 0:02:53]}  d5 {[%clk 0:02:48]} 5. Bd3 {[%clk 0:02:53]}  Nd7 {[%clk 0:02:48]} 6. O-O {[%clk 0:02:42]}  Bd6 {[%clk 0:02:42]} 7. f4 {[%clk 0:01:55]}  O-O {[%clk 0:02:36]} 8. c4 {[%clk 0:01:45]}  c5 {[%clk 0:02:29]} 9. cxd5 {[%clk 0:01:39]}  f5 {[%clk 0:02:12]} 10. Nc3 {[%clk 0:01:31]}  cxd4 {[%clk 0:02:00]} 11. Nxe4 {[%clk 0:01:27]}  fxe4 {[%clk 0:01:59]} 12. Bxe4 {[%clk 0:01:28]}  Nxe5 {[%clk 0:01:54]} 13. fxe5 {[%clk 0:01:26]}  Rxf1+ {[%clk 0:01:54]} 14. Kxf1 {[%clk 0:01:19]}  Bxe5 {[%clk 0:01:39]} 15. Bxh7+ {[%clk 0:01:18]}  Kxh7 {[%clk 0:01:39]} 16. Qh5+ {[%clk 0:01:18]}  Kg8 {[%clk 0:01:40]} 17. Qxe5 {[%clk 0:01:19]}  Bg4 {[%clk 0:01:22]} 18. Bg5 {[%clk 0:01:17]}  Qb6 {[%clk 0:01:17]} 19. Be7 {[%clk 0:00:43]}  d3 {[%clk 0:01:02]} 20. g3 {[%clk 0:00:20]}  d2 {[%clk 0:00:52]} 21. d6 {[%clk 0:00:20]}  Rc8 {[%clk 0:00:30]} 22. Kg2 {[%clk 0:00:16]}  Rc1 {[%clk 0:00:25]} 23. Qd5+ {[%clk 0:00:14]}  Kh8 {[%clk 0:00:22]} 24. d7 {[%clk 0:00:06]}  Qg1# {[%clk 0:00:21]} 0-1


[Site "https://www.chess.com"]

[Event "Titled Tuesday Blitz January 10 Early 2023"]
[White "Kornyukov, Alexey"]
[Black "AidenRchess"]
[WhiteFideId "4150457"]
[WhiteElo "2452"]
[BlackElo "2385"]
[Result "0-1"]
[Round "03"]
[TimeControl "180+2"]
[Date "2023.01.10"]
[WhiteClock "0:02:19"]
[BlackClock "0:02:22"]

1. e4 {[%clk 0:03:00]}  c5 {[%clk 0:02:57]} 2. Nf3 {[%clk 0:02:58]}  e6 {[%clk 0:02:56]} 3. c3 {[%clk 0:02:58]}  d5 {[%clk 0:02:54]} 4. exd5 {[%clk 0:02:58]}  exd5 {[%clk 0:02:55]} 5. d4 {[%clk 0:02:59]}  Nf6 {[%clk 0:02:53]} 6. dxc5 {[%clk 0:02:58]}  Bxc5 {[%clk 0:02:53]} 7. Bb5+ {[%clk 0:02:59]}  Bd7 {[%clk 0:02:51]} 8. Bxd7+ {[%clk 0:02:58]}  Nbxd7 {[%clk 0:02:52]} 9. O-O {[%clk 0:02:58]}  O-O {[%clk 0:02:52]} 10. Bg5 {[%clk 0:02:59]}  Qb6 {[%clk 0:02:51]} 11. b4 {[%clk 0:02:58]}  Bd6 {[%clk 0:02:46]} 12. Be3 {[%clk 0:02:56]}  Qc7 {[%clk 0:02:45]} 13. Nd4 {[%clk 0:02:55]}  Bxh2+ {[%clk 0:02:44]} 14. Kh1 {[%clk 0:02:55]}  Be5 {[%clk 0:02:39]} 15. Na3 {[%clk 0:02:49]}  a6 {[%clk 0:02:38]} 16. b5 {[%clk 0:02:47]}  Qxc3 {[%clk 0:02:35]} 17. Nac2 {[%clk 0:02:42]}  axb5 {[%clk 0:02:29]} 18. Nxb5 {[%clk 0:02:37]}  Qc4 {[%clk 0:02:24]} 19. Nca3 {[%clk 0:02:21]}  Qh4+ {[%clk 0:02:22]} 20. Kg1 {[%clk 0:02:19]}  Qh2# {[%clk 0:02:22]} 0-1


[Site "https://www.chess.com"]

[Event "Titled Tuesday Blitz January 10 Early 2023"]
[White "Tarasova, Viktoriya"]
[Black "Tarnowska, Aleksandra"]
[WhiteFideId "4175840"]
[BlackFideId "1180967"]
[WhiteElo "2226"]
[BlackElo "1835"]
[Result "1-0"]
[Round "03"]
[TimeControl "180+2"]
[Date "2023.01.10"]
[WhiteClock "0:01:31"]
[BlackClock "0:00:02"]

1. d4 {[%clk 0:03:00]}  d5 {[%clk 0:02:56]} 2. c4 {[%clk 0:03:01]}  e6 {[%clk 0:02:55]} 3. Nc3 {[%clk 0:03:00]}  Nf6 {[%clk 0:02:56]} 4. cxd5 {[%clk 0:02:59]}  exd5 {[%clk 0:02:56]} 5. Bg5 {[%clk 0:02:58]}  Be7 {[%clk 0:02:56]} 6. Qc2 {[%clk 0:02:56]}  O-O {[%clk 0:02:56]} 7. e3 {[%clk 0:02:56]}  h6 {[%clk 0:02:56]} 8. Bh4 {[%clk 0:02:55]}  c6 {[%clk 0:02:35]} 9. Bd3 {[%clk 0:02:54]}  Nbd7 {[%clk 0:02:29]} 10. Nge2 {[%clk 0:02:54]}  Re8 {[%clk 0:02:04]} 11. O-O {[%clk 0:02:54]}  Nf8 {[%clk 0:02:04]} 12. f3 {[%clk 0:02:42]}  Nh5 {[%clk 0:01:43]} 13. Bf2 {[%clk 0:02:40]}  Bd6 {[%clk 0:01:27]} 14. Rae1 {[%clk 0:02:37]}  Bc7 {[%clk 0:01:19]} 15. e4 {[%clk 0:02:37]}  dxe4 {[%clk 0:01:15]} 16. fxe4 {[%clk 0:02:35]}  Bg4 {[%clk 0:01:06]} 17. e5 {[%clk 0:02:27]}  Bxe2 {[%clk 0:01:02]} 18. Nxe2 {[%clk 0:02:24]}  Ba5 {[%clk 0:00:27]} 19. Rd1 {[%clk 0:02:19]}  g6 {[%clk 0:00:19]} 20. Be3 {[%clk 0:02:19]}  g5 {[%clk 0:00:09]} 21. Bc4 {[%clk 0:02:15]}  Ne6 {[%clk 0:00:07]} 22. Qf5 {[%clk 0:02:15]}  Qe7 {[%clk 0:00:05]} 23. Qg4 {[%clk 0:02:06]}  Nhg7 {[%clk 0:00:06]} 24. Ng3 {[%clk 0:02:02]}  Bb6 {[%clk 0:00:06]} 25. Rf6 {[%clk 0:01:58]}  Rad8 {[%clk 0:00:02]} 26. Rxh6 {[%clk 0:01:56]}  c5 {[%clk 0:00:02]} 27. d5 {[%clk 0:01:55]}  Nd4 {[%clk 0:00:02]} 28. Bxg5 {[%clk 0:01:31]}  Qxe5 {[%clk 0:00:02]} 29. Bf6 {[%clk 0:01:31]} 1-0


[Site "https://www.chess.com"]

[Event "Titled Tuesday Blitz January 10 Early 2023"]
[White "Michalski, Olaf"]
[Black "Karabalis, Harilos"]
[WhiteFideId "1106740"]
[BlackFideId "4621808"]
[WhiteElo "2273"]
[BlackElo "2252"]
[Result "0-1"]
[Round "03"]
[TimeControl "180+2"]
[Date "2023.01.10"]
[WhiteClock "0:00:01"]
[BlackClock "0:01:26"]

1. d4 {[%clk 0:02:58]}  Nf6 {[%clk 0:03:00]} 2. c4 {[%clk 0:02:57]}  g6 {[%clk 0:03:01]} 3. Nc3 {[%clk 0:02:56]}  Bg7 {[%clk 0:03:01]} 4. e4 {[%clk 0:02:56]}  d6 {[%clk 0:03:02]} 5. Nf3 {[%clk 0:02:56]}  O-O {[%clk 0:03:02]} 6. Be2 {[%clk 0:02:57]}  e5 {[%clk 0:03:01]} 7. d5 {[%clk 0:02:56]}  Na6 {[%clk 0:02:59]} 8. O-O {[%clk 0:02:52]}  Nc5 {[%clk 0:02:59]} 9. Qc2 {[%clk 0:02:51]}  a5 {[%clk 0:03:00]} 10. Bg5 {[%clk 0:02:50]}  h6 {[%clk 0:02:59]} 11. Be3 {[%clk 0:02:46]}  b6 {[%clk 0:02:57]} 12. Nd2 {[%clk 0:02:43]}  Nfd7 {[%clk 0:02:50]} 13. b3 {[%clk 0:02:40]}  f5 {[%clk 0:02:50]} 14. f3 {[%clk 0:02:34]}  Nf6 {[%clk 0:02:47]} 15. a3 {[%clk 0:02:28]}  f4 {[%clk 0:02:46]} 16. Bf2 {[%clk 0:02:26]}  g5 {[%clk 0:02:46]} 17. b4 {[%clk 0:02:17]}  axb4 {[%clk 0:02:45]} 18. axb4 {[%clk 0:02:17]}  Rxa1 {[%clk 0:02:46]} 19. Rxa1 {[%clk 0:02:16]}  Ncd7 {[%clk 0:02:46]} 20. Nb5 {[%clk 0:01:42]}  h5 {[%clk 0:02:41]} 21. Ra8 {[%clk 0:01:19]}  Qe7 {[%clk 0:02:28]} 22. Nxc7 {[%clk 0:01:16]}  g4 {[%clk 0:02:24]} 23. Ne6 {[%clk 0:01:11]}  Re8 {[%clk 0:02:23]} 24. Bh4 {[%clk 0:01:06]}  Nf8 {[%clk 0:02:17]} 25. Nxf8 {[%clk 0:00:49]}  Qxf8 {[%clk 0:02:15]} 26. Nb3 {[%clk 0:00:40]}  gxf3 {[%clk 0:02:14]} 27. Bxf3 {[%clk 0:00:33]}  Ng4 {[%clk 0:02:13]} 28. Bf2 {[%clk 0:00:24]}  Ne3 {[%clk 0:02:02]} 29. Bxe3 {[%clk 0:00:24]}  fxe3 {[%clk 0:02:02]} 30. Bxh5 {[%clk 0:00:20]}  Rd8 {[%clk 0:01:56]} 31. Qe2 {[%clk 0:00:18]}  Bh6 {[%clk 0:01:55]} 32. Qf3 {[%clk 0:00:15]}  Qg7 {[%clk 0:01:34]} 33. Qg3 {[%clk 0:00:01]}  Qxg3 {[%clk 0:01:31]} 34. hxg3 {[%clk 0:00:01]}  Kg7 {[%clk 0:01:32]} 35. Bf3 {[%clk 0:00:01]}  Bg5 {[%clk 0:01:30]} 36. Kf1 {[%clk 0:00:01]}  Bd7 {[%clk 0:01:26]} 0-1


[Site "https://www.chess.com"]